Cogmind - Beta 16.1 @@@ ROGUE MODE // 2026.04.23 @ 18:49:32 Player: beans Result: Destroyed by D-53 Grenadier with Mini Grenade Launcher Performance ------------- Evolutions (0) 0 Regions Visited (2) 400 Robots Destroyed (7) 35 Value Destroyed (122) 122 Prototype IDs (0) 0 Alien Tech Used (0) 0 Bonus (0) 0 TOTAL SCORE: 557 Bonus ------- None Cogmind --------- Core Integrity 0/250 Matter 290/300 Energy 100/100 System Corruption 0% Temperature Cool (0) Movement Core (50) Location -10/Mines Parts ------- > --- POWER (1) -------- (None) > --- PROPULSION (2) --- (None) > --- UTILITY (2) ------ (None) > --- WEAPON (2) ------- (None) > --- INVENTORY (5) ---- Improved Heat Sink High-capacity Matter Pod (17) High-capacity Matter Pod (0) Beamcaster Grenade Launcher Peak State ------------ > --- POWER ------------ (None) > --- PROPULSION ------- Light Treads Light Treads > --- UTILITY ---------- Small Storage Unit > --- WEAPON ----------- Light Assault Rifle Heavy Assault Rifle > --- INVENTORY -------- Improved Ion Engine High-capacity Matter Pod High-capacity Matter Pod Beamcaster Grenade Launcher [Rating: 7] Favorites ----------- Power None Propulsion Light Treads Treads Light Treads Utility Small Storage Unit Storage Small Storage Unit Weapon Light Assault Rifle Ballistic Gun Light Assault Rifle Launcher Grenade Launcher Build | -11 -10 -10 ------- Run | Yrd Mat Min Slots Evolved . | . . . Power . | . . . Propulsion . | . . . Utility . | . . . Weapon . | . . . Parts Attached 6 | 4 1 1 Power . | . . . Engine . | . . . Core . | . . . Reactor . | . . . Propulsion 2 | 2 . . Treads 2 | 2 . . Leg . | . . . Wheel . | . . . Hover . | . . . Flight . | . . . Utility 1 | 1 . . Device . | . . . Storage 1 | 1 . . Processor . | . . . Hackware . | . . . Protection . | . . . Artifact . | . . . Weapon 3 | 1 1 1 Energy Gun . | . . . Energy Cannon . | . . . Ballistic Gun 2 | 1 . 1 Ballistic Cannon . | . . . Launcher 1 | . 1 . Special Weapon . | . . . Impact Weapon . | . . . Slashing Weapon . | . . . Piercing Weapon . | . . . Special Melee Weapon . | . . . Unidentified Prototypes . | . . . Parts Lost 1 | . . 1 Power . | . . . Propulsion . | . . . Utility . | . . . Weapon 1 | . . 1 Highest Loss Streak 1 | . . 1 To Critical Strikes . | . . . Average Backups 1 | . . 1 Power . | . . . Propulsion . | . . . Utility . | . . 1 Weapon . | . . . Tool/Special . | . . . Unused Backups 4 | . . 4 Power . | . . . Propulsion . | . . . Utility 3 | . . 3 Weapon 1 | . . 1 Tool/Special . | . . . Average Slot Usage (%) 65 | . 61 66 Treads 26 | . 28 26 Storage 13 | . 14 13 Ballistic Gun 15 | . 14 16 Launcher 8 | . 4 10 Peak Build Rating 7 | 4 5 7 Average Rating 4 | 2 4 5 On Entrance 3 | . 4 5 Avg Prop Armor Cover (%) . | . . . Naked Turns 2 | . . 2 Heaviest Build 9 | 6 9 9 Greatest Support 40 | 40 40 40 Greatest Overweight (x) . | . . . Average Overweight (x) . | . . . Largest Inventory Capacity 8 | 8 8 8 Average Capacity 7 | 7 8 7 Most Carried 6 | 4 1 6 Average Carried 1 | . . 1 Final Capacity 8 | 8 8 5 Final Carried 5 | . . 5 Class Distribution -------------------- 100% | Mutant Dominant Class ---------------- Mutant | -10/Materials Mutant | -10/Mines Resources | -11 -10 -10 ----------- Run | Yrd Mat Min Matter Collected 382 | 208 63 111 Remotely . | . . . Salvage Created 132 | . 90 42 Parts 15 | . 12 3 Haulers Intercepted . | . . . Recyclers Shooed 2 | . 1 1 Parts Field Recycled . | . . . Retrieved Matter . | . . . Parts Self-Destructed . | . . . Prevented . | . . . Parts Restored . | . . . Kills | -11 -10 -10 ------- Run | Yrd Mat Min Combat Hostiles Destroyed 4 | . 3 1 Guns 2 | . 1 1 AOE 2 | . 2 . Classes Destroyed 5 | . 4 1 Builder 1 | . 1 . Recycler 1 | . 1 . Watcher 1 | . 1 . Swarmer 3 | . 3 . Sentry 1 | . . 1 Best Kill Streak 6 | . 6 1 Combat Bots Only 3 | . 3 1 Max Kills in Single Turn 2 | . 2 1 Gunslinging . | . . . Exploded 1 | . 1 . Melee . | . . . Uniques/NPCs Destroyed . | . . . Combat | -11 -10 -10 -------- Run | Yrd Mat Min Hostile Shots Fired 34 | . 3 31 Missed 11 | . 1 10 Hits 23 | . 2 21 Projectile 23 | . 2 21 AOE 8 | . . 8 Critical Strikes 1 | . . 1 Damage Taken 523 | . 14 509 Core 256 | . 6 250 Absorbed by Shields . | . . . Core Remaining (%) 100 | 100 . . Volleys Fired 19 | . 5 14 Largest 2 | . 2 2 Hottest 50 | . 50 50 Shots Fired 33 | . 10 23 Gun 26 | . 5 21 Cannon . | . . . Launcher 7 | . 5 2 Special . | . . . Kinetic 26 | . 5 21 Thermal . | . . . Explosive 7 | . 5 2 Electromagnetic . | . . . Robot Hit Streak 9 | . 1 9 Robot Miss Streak 4 | . . 4 Penetration Max . | . . . Secondary Targets . | . . . Shots Hit Robots 14 | . 1 13 Core Hits 11 | . 8 3 Critical Kills . | . . . Critical Parts Destroyed . | . . . Critical Strikes . | . . . Melee Attacks . | . . . Impact . | . . . Slashing . | . . . Piercing . | . . . Sneak Attacks . | . . . Combat Hostiles . | . . . Follow-up Attacks . | . . . Damage Inflicted 414 | . 269 145 Guns 142 | . 10 132 Cannons . | . . . Explosions 272 | . 259 13 Melee . | . . . Ramming . | . . . Kinetic 142 | . 10 132 Thermal . | . . . Explosive 272 | . 259 13 Electromagnetic . | . . . Impact . | . . . Slashing . | . . . Piercing . | . . . Highest Corruption . | . . . Average Corruption . | . . . Corruption Purged . | . . . Corruption Blocked . | . . . Overload Shots . | . . . Overflow Damage . | . . . Projectiles . | . . . Explosions . | . . . Melee . | . . . Knockbacks . | . . . Impact . | . . . Kinetic . | . . . Secondary . | . . . Self-Inflicted Damage . | . . . Shots . | . . . Rammed . | . . . Targets Rammed . | . . . Kicked . | . . . Crushed . | . . . Highest Temperature 5 | . . 5 Average Temperature 2 | . . 2 Received Heat Transfer 72 | . . 72 Siege Activations . | . . . Martial Activations . | . . . Shielding Activations . | . . . Robots Disrupted . | . . . Combat Hostiles . | . . . Robots Corrupted . | . . . Combat Hostiles . | . . . Parts Fried . | . . . Impact Corruptions . | . . . Robots Melted . | . . . Combat Hostiles . | . . . Parts Melted . | . . . Heat Transferred . | . . . Parts Sabotaged . | . . . Parts Stolen . | . . . Parts Stripped . | . . . Power Chain Reactions . | . . . Alert | -11 -10 -10 ------- Run | Yrd Mat Min Maximum Alert Level . | . . . Low Security (%) 100 | 100 100 100 Level 1 . | . . . Level 2 . | . . . Level 3 . | . . . Level 4 . | . . . Level 5 . | . . . High Security . | . . . Max Security . | . . . Peak Influence 103 | . 103 45 Initial 36 | . . 36 Average 17 | . 27 15 Influence Increases 188 | . 113 75 Destroy 0b10 Robot/C 80 | . 60 20 Destroy 0b10 Robot/NC 15 | . 15 . Destroy Leader 12 | . 12 . Disable Machine 30 | . . 30 Destroy Structure 51 | . 26 25 Influence Decreases 188 | . 20 168 Entered New Map 57 | . . 57 Time Decay 126 | . 20 106 Lost Part 5 | . . 5 Squads Dispatched 1 | . 1 . Investigation 1 | . 1 . Extermination . | . . . Reinforcement . | . . . Assault . | . . . Garrison . | . . . Intercept . | . . . Searches Triggered . | . . . Construction Impeded . | . . . Haulers Reinforced . | . . . Active Scanning Responses . | . . . Cargo Convoy Interrupts . | . . . Stealth | -11 -10 -10 --------- Run | Yrd Mat Min Distress Signals 2 | . 2 . Communications Jammed . | . . . Distress Signals . | . . . Times Spotted 12 | . 5 7 Peak Tracking Total 4 | . 4 4 Tactical Retreats . | . . . Traps | -11 -10 -10 ------- Run | Yrd Mat Min Traps Triggered 1 | . 1 . Indirectly . | . . . Trap Hack Attempts . | . . . Triggered . | . . . Disarmed . | . . . Reprogrammed . | . . . Reused . | . . . Traps Extracted . | . . . Installed . | . . . Triggered . | . . . Machines | -11 -10 -10 ---------- Run | Yrd Mat Min Machines Disabled 3 | . . 3 Max in Single Turn 2 | . . 2 Machines Repaired . | . . . Machines Dismantled . | . . . Machines Sabotaged . | . . . Overloaded Fab Kills . | . . . Hacking | -11 -10 -10 --------- Run | Yrd Mat Min Machines Accessed . | . . . Terminals . | . . . Fabricators . | . . . Repair Stations . | . . . Recycling Units . | . . . Scanalyzers . | . . . Garrison Access . | . . . Total Hacks . | . . . Successful . | . . . Failed . | . . . Catastrophic . | . . . Database Lockouts . | . . . Manual . | . . . Terminals . | . . . Fabricators . | . . . Repair Stations . | . . . Recycling Units . | . . . Scanalyzers . | . . . Garrison Access . | . . . Terminal Hacks . | . . . Fabricator Hacks . | . . . Repair Station Hacks . | . . . Recycling Unit Hacks . | . . . Scanalyzer . | . . . Garrison Access Hacks . | . . . Unauthorized Hacks . | . . . Terminals . | . . . Fabricators . | . . . Repair Stations . | . . . Recycling Units . | . . . Scanalyzers . | . . . Garrison Access . | . . . Data Cores Recovered . | . . . Used . | . . . Hacking Detections . | . . . Full Trace Events . | . . . Feedback Events . | . . . Feedback Blocked . | . . . Robot Schematics Acquired . | . . . Robots Built . | . . . Authchips . | . . . Time . | . . . Total Robot Build Rating . | . . . Part Schematics Acquired . | . . . Parts Built . | . . . Authchips . | . . . Time . | . . . Total Part Build Rating . | . . . Part Studies Acquired . | . . . Parts Repaired . | . . . Time . | . . . Parts Recycled . | . . . Recycled Matter . | . . . Retrieved Matter . | . . . Retrieved Components . | . . . Parts Scanalyzed . | . . . Part Schematics Acquired . | . . . Parts Damaged . | . . . Bothacking | -11 -10 -10 ------------ Run | Yrd Mat Min Used RIF Installer . | . . . Robots Hacked . | . . . Non-combat . | . . . Combat . | . . . Robot Hacks Applied . | . . . Relay Couplers Released . | . . . Fabnet Peak Effective % . | . . . Robots Rewired . | . . . Allies Hacked . | . . . Hacks Repelled . | . . . Allies | -11 -10 -10 -------- Run | Yrd Mat Min Total Allies . | . . . Largest Group . | . . . Highest-Rated Group . | . . . Highest-Rated Ally . | . . . Total Orders . | . . . Ally Attacks . | . . . Total Damage . | . . . Kills . | . . . Allies Corrupted . | . . . Allies Melted . | . . . Intel | -11 -10 -10 ------- Run | Yrd Mat Min Active Infowar (turns) . | . . . Robot Analysis Total . | . . . Derelict Logs Recovered 1 | . . 1 Drone Launches . | . . . Drone Recoveries . | . . . Exploration | -11 -10 -10 ------------- Run | Yrd Mat Min Turns Passed 534 | 46 151 337 Spaces Moved 318 | 35 85 198 Core 52 | 15 . 37 Treads 266 | 20 85 161 Legs . | . . . Wheels . | . . . Hover . | . . . Flight . | . . . Fastest Speed 50 | 50 160 50 Average Speed 142 | 112 160 139 Slowest Speed 160 | 160 160 160 Overloaded Moves . | . . . Propulsion Burnouts . | . . . Robots Hopped . | . . . Potential Cave-ins . | . . . Cave-ins Triggered . | . . . Exploration Rate (%) 22 | 4 26 36 Regions Visited 2 Branch Regions 1 Pre-discovered Areas . | . . . Known Exits Taken . | . . . Unknown Exits Taken 2 | 1 1 . Scrap Searched . | . . . Spaces Dug . | . . . Terrain Destroyed 55 | . 30 25 Melee . | . . . Projectile . | . . . AOE 55 | . 30 25 Terrain Rammed . | . . . Walls Destroyed . | . . . Machines Disabled . | . . . Actions | -11 -10 -10 --------- Run | Yrd Mat Min Total 374 | 42 91 241 Wait 14 | . . 14 Move 316 | 34 84 198 Hop . | . . . Pick Up 11 | 4 1 6 Fast Attach 1 | . . 1 Attach 6 | 4 1 1 Detach 2 | . . 2 Swap . | . . . Drop 5 | . . 5 Fire 19 | . 5 14 Melee . | . . . Ram . | . . . Kick . | . . . Crush . | . . . Escape Stasis . | . . . Rewire . | . . . Trap . | . . . Miscellaneous . | . . . Route ------- -11/Scrapyard -10/Materials -10/Mines (discovered 1 exit: [*Mat]) History --------- Turn | Location | Event 22 | -11/Scrapyard | Discovered new exit (range 14) 47 | -11/Scrapyard | Entered Materials 185 | -10/Materials | Discovered new exit (range 9) 198 | -10/Materials | Entered Mines 261 | -10/Mines | Learned 2 Materials zone layouts 294 | -10/Mines | Discovered new exit (range 5) 300 | -10/Mines | Build established: Mutant 350 | -10/Mines | Met a Derelict bent on vengeance 422 | -10/Mines | Joined a pair of Derelicts in attacking an 0b10 outpost 486 | -10/Mines | Assembled infested the area 533 | -10/Mines | Core integrity fell below 50% 535 | -10/Mines | Core integrity fell below 20% 535 | -10/Mines | Destroyed by D-53 Grenadier with Mini Grenade Launcher Last Messages --------------- U-05 Engineer builds a Door. U-05 Engineer lays Concrete. U-05 Engineer builds a Door. Acquired Beamcaster. Acquired Imp. Heat Sink. U-05 Engineer lays Concrete. The unstable cave ceiling collapses. U-05 Engineer lays Concrete. Dropped Lgt. Treads. Dropped Imp. Ion Engine. C-45 Heavy ARC bursts open, deploying its payload. D-53 Grenadier unfolds itself. Dropped Sml. Storage Unit. Dropped Lgt. Assault Rifle. Dropped Hvy. Assault Rifle. Acquired Hvy. Assault Rifle. U-05 Engineer lays Concrete. U-05 Engineer destroyed. Hvy. Assault Rifle destroyed. Map ----- +----------------------------------------------------+ | ?????????????????????????????????????# ?? | | ?????????????????????????????????????# """#? | | ?????????????????????????????????????# """?? | | ?????????????????????????????????????# """?? | | ????????????????????############?????# ??? | | ???????????????###### #?????? ???? | | ?????????????###[[## #?????? ????? | | ?????????????## # ####???# #????? | | ?????????????# =[ +% ##### #????? | | ?????????????#% * + #????? | | ?????????????#[!/! # #????? | | ?????????????# ] # ########????? | | ?????????????### # ## ##???????????? | | ???????????????###### #???????????? | | ????????????????????# | ##???????????? | | ????????????????????# !!=! d #????????????? | | ??????????????????### =* ##????????????? | | ??????????????????# ##????????????? | | ??????????????????## #????????????? | | ??????????????????# d #????????????? | | ??????????????????# #??##########?? | | ??????????????????## ##??# "#?? | | ???????????????????##### #??# "#?? | | ???????????????????????# #??# #?? | | ???????????????????????# ###### #?? | | ??????????????????#######@ #?? | | ??????????????????# % ##### #? | | ??????????????????# ##???# #?? | | ??????????????????# ####### #????# "#?? | | ??????????????????# ???????# #????# "" "#?? | | ???????????????????????????# #????# ##?? | | ???????????????????????????# ##############??? | | ???????????????????????????# #????????? | | ???????????????????????????# ###### #????????? | | ???????????????????????????# #????# ##???????? | | ???????????????????????????# #???## ##??????? | | ???????????????????????????# #???# #??????? | | ???????????????????????????# #####] ##?????? | | ???????????????????????????# ##????? | | ???????????????????????????# ##### ! #????? | | ????????????????????????#### #???# / #????? | | ???????????????????????## ????# #????? | | ???????????????????????# ????# ###????? | | ???????????????????????? ???# ####??????? | | ?????????????????####???# ??# #?????????? | | ????????????????## #???# ### #?????????? | | ???????????????## ##??# #?????????? | | ???????????????? #??## ## ###?????????? | | ????????????????? #???????# ### #???? | | ??????????????????# ##??????# < #???? | +----------------------------------------------------+ Best States ------------- Heat Dissipation 25 Energy Generation 5 Energy Capacity 100 Matter Stores 295 Matter Capacity 300 Sight Range 16 Terrain Scan Density 10 Evasion (%) 50 Recoil Reduction 2 Item Schematics ----------------- None Robot Schematics ------------------ None Fabricated ------------ Nothing Repaired ---------- Nothing Studied --------- None Alien Tech Used ----------------- None Achievements -------------- None Challenges ------------ None Game ------ Seed ZhirovOvertunedTearclaws Manual? 0 Play Time 00:03:54 Cumulative 275.3 hours Start 2026.04.23 @ 18:47:08 End 2026.04.23 @ 18:49:32 Sessions 1 Manual Loads 0 Difficulty Rogue Special Mode None Game No. 726 Rogue 724 Adventurer 2 Explorer 0 Win Type - Total 0 Types 0/0/0/0/0/0/0/0/0/0 Lore% 68 Gallery% 64 Achievement% 45 Wizard Run 0 Options --------- Layout 2 ASCII 0 Keyboard 0 Movement Mouse Keybinds 0 Fullscreen 1 Font 24/Smallcaps Map View 50x44 Zoom Use 0% Tactical HUD 0 Map Filters NONE Filters NONE Steam 1 RUN: 94f728f4-9909-45bd-91bd-9e290596412f